fUST/lending_fUST_20240909
["ID","MTS","AMOUNT","RATE_DAILY","PERIOD"]
[337610402,1725892242349,-500.0,0.00035616,14]
[337610404,1725892242359,-1854.9,0.00035616,14]
[337610406,1725892242370,-500.0,0.00035616,14]
[337610408,1725892242379,-500.0,0.00035616,14]
[337610410,1725892242389,-887.17,0.00035616,14]
[337610412,1725892242399,-500.0,0.00035616,14]
[337610414,1725892242409,-500.0,0.00035616,14]
[337610416,1725892242419,-151.0,0.00035616,14]
[337610419,1725892242429,-594.62,0.00035616,14]
[337610421,1725892242439,-500.0,0.00035616,14]
[337610423,1725892242448,-599.55,0.00035616,14]
[337610425,1725892242458,-500.0,0.00035616,14]
[337610427,1725892242468,-500.0,0.00035616,14]
[337610429,1725892242477,-500.0,0.00035616,14]
[337610431,1725892242486,-622.79424468,0.00035616,14]
[337610433,1725892242496,-500.0,0.00035616,14]
[337610435,1725892242506,-394.04101147,0.00035616,14]
[337610436,1725892242518,-500.0,0.00035616,14]
[337610439,1725892242527,-1272.16,0.00035616,14]
[337610441,1725892242537,-500.0,0.00035616,14]
[337610443,1725892242547,-500.0,0.00035616,14]
[337610445,1725892242557,-151.0,0.00035616,14]
[337610447,1725892242566,-151.0,0.00035616,14]
[337610449,1725892242576,-666.2,0.00035616,14]
[337610451,1725892242585,-151.0,0.00035616,14]
[337610453,1725892242595,-151.0,0.00035616,14]
[337610455,1725892242604,-547.86,0.00035616,14]
[337610456,1725892242613,-500.0,0.00035616,14]
[337610458,1725892242623,-613.87,0.00035616,14]
[337610461,1725892242633,-194.953613,0.00035616,14]
[337610463,1725892242642,-500.0,0.00035616,14]
[337610465,1725892242651,-500.0,0.00035616,14]
[337610467,1725892242661,-358.4850641,0.00035616,14]
[337610469,1725892242670,-500.0,0.00035616,14]
[337610471,1725892242680,-551.76,0.00035616,14]
[337610473,1725892242690,-513.24691996,0.00035616,14]
[337610475,1725892242699,-500.0,0.00035616,14]
[337610477,1725892242708,-500.0,0.00035616,14]
[337610479,1725892242718,-587.88,0.00035616,14]
[337610481,1725892242727,-500.0,0.00035616,7]
[337610483,1725892242736,-400.63237236,0.00035616,14]
[337610485,1725892242746,-500.0,0.00035616,14]
[337610487,1725892242756,-510.39857912,0.00035616,14]
[337610489,1725892242769,-183.007114,0.00035616,14]
[337610491,1725892242779,-500.0,0.00035616,14]
[337610493,1725892242788,-500.0,0.00035616,14]
[337610495,1725892242798,-183.007114,0.00035616,14]
[337610497,1725892242808,-726.24,0.00035616,14]
[337610500,1725892242817,-424.04976559,0.00035616,14]
[337610503,1725892242827,-500.0,0.00035616,14]
[337610507,1725892242836,-500.0,0.00035616,14]
[337610511,1725892242846,-987.61,0.00035616,14]
[337610514,1725892242855,-500.0,0.00035616,14]
[337610517,1725892242865,-500.0,0.00035616,14]
[337610520,1725892242874,-500.0,0.00035616,14]
[337610522,1725892242884,-500.0,0.00035616,14]
[337610525,1725892242894,-500.0,0.00035616,14]
[337610528,1725892242904,-500.0,0.00035616,14]
[337610531,1725892242913,-599.59,0.00035616,14]
[337610534,1725892242929,-500.0,0.00035616,14]
[337610537,1725892242938,-500.0,0.00035616,14]
[337610539,1725892242948,-500.0,0.00035616,14]
[337610540,1725892242957,-500.0,0.00035616,14]
[337610542,1725892242969,-860.27,0.00035616,14]
[337610544,1725892242978,-513.65501655,0.00035616,14]
[337610546,1725892242988,-595.39407677,0.00035616,14]
[337610549,1725892242998,-1218.87,0.00035616,14]
[337610551,1725892243010,-500.0,0.00035616,14]
[337610553,1725892243022,-500.0,0.00035616,14]
[337610555,1725892243031,-1842.02,0.00035616,14]
[337610557,1725892243041,-501.44245015,0.00035616,14]
[337610559,1725892243051,-500.0,0.00035616,14]
[337610561,1725892243060,-532.76,0.00035616,14]
[337610563,1725892243071,-500.0,0.00035616,14]
[337610565,1725892243080,-959.11,0.00035616,14]
[337610567,1725892243090,-500.0,0.00035616,14]
[337610569,1725892243099,-322.351985,0.00035616,14]
[337610571,1725892243109,-322.351985,0.00035616,14]
[337610573,1725892243119,-500.0,0.00035616,14]
[337610575,1725892243128,-500.0,0.00035616,14]
[337610577,1725892243138,-500.0,0.00035616,14]
[337610579,1725892243147,-500.0,0.00035616,14]
[337610581,1725892243157,-322.351985,0.00035616,14]
[337610583,1725892243167,-322.351985,0.00035616,14]
[337610585,1725892243176,-151.0,0.00035616,14]
[337610587,1725892243185,-500.0,0.00035616,14]
[337610589,1725892243195,-151.0,0.00035616,14]
[337610591,1725892243205,-500.0,0.00035616,14]
[337610593,1725892243214,-606.33,0.00035616,14]
[337610595,1725892243223,-1386.75,0.00035616,14]
[337610597,1725892243234,-500.48690562,0.00035616,14]
[337610599,1725892243243,-500.0,0.00035616,14]
[337610601,1725892243252,-501.32120845,0.00035616,10]
[337610603,1725892243261,-500.0,0.00035616,14]
[337610605,1725892243273,-500.0,0.00035616,14]
[337610607,1725892243282,-500.0,0.00035616,14]
[337610609,1725892243292,-500.0,0.00035616,14]
[337610611,1725892243301,-1616.87,0.00035616,14]
[337610613,1725892243310,-500.0,0.00035616,14]
[337610615,1725892243321,-1129.55,0.00035616,14]
[337610617,1725892243330,-500.0,0.00035616,14]
[337610619,1725892243340,-500.0,0.00035616,14]
[337610621,1725892243350,-698.78,0.00035616,14]
[337610623,1725892243359,-1831.65,0.00035616,14]
[337610625,1725892243369,-500.0,0.00035616,14]
[337610627,1725892243379,-378.6515039,0.00035616,14]
[337610629,1725892243389,-500.0,0.00035616,14]
[337610631,1725892243399,-4171.440425,0.00035616,14]
[337610633,1725892243408,-4171.440425,0.00035616,14]
[337610635,1725892243417,-501.53743628,0.00035616,14]
[337610638,1725892243428,-500.0,0.00035616,14]
[337610640,1725892243437,-500.0,0.00035616,14]
[337610641,1725892243447,-500.0,0.00035616,14]
[337610642,1725892243456,-500.0,0.00035616,14]
[337610643,1725892243466,-500.0,0.00035616,14]
[337610644,1725892243476,-4834.03,0.00035616,14]
[337610645,1725892243486,-500.0,0.00035616,14]
[337610646,1725892243495,-4171.440425,0.00035616,14]
[337610647,1725892243505,-4171.440425,0.00035616,14]
[337610648,1725892243514,-1428.97,0.00035616,14]
[337610649,1725892243526,-500.0,0.00035616,14]
[337610650,1725892243540,-500.0,0.00035616,14]
[337610651,1725892243549,-500.0,0.00035616,14]
[337610652,1725892243559,-500.0,0.00035616,14]
[337610653,1725892243568,-465.744916,0.00035616,14]
[337610654,1725892243579,-500.0,0.00035616,14]
[337610655,1725892243588,-608.17111011,0.00035616,14]
[337610656,1725892243597,-465.744916,0.00035616,14]
[337610657,1725892243606,-217.26875899,0.00035616,14]
[337610658,1725892243616,-500.0,0.00035616,14]
[337610659,1725892243625,-1140.73,0.00035616,14]
[337610661,1725892243635,-465.744916,0.00035616,14]
[337610663,1725892243644,-465.744916,0.00035616,14]
[337610665,1725892243654,-500.0,0.00035616,14]
[337610667,1725892243664,-501.59963453,0.00035616,14]
[337610669,1725892243673,-796.58,0.00035616,14]
[337610670,1725892243682,-500.0,0.00035616,14]
[337610671,1725892243692,-500.0,0.00035616,14]
[337610672,1725892243702,-2032.16,0.00035616,14]
[337610673,1725892243712,-501.26264946,0.00035616,14]
[337610674,1725892243722,-500.0,0.00035616,14]
[337610675,1725892243731,-841.24,0.00035616,14]
[337610676,1725892243741,-500.0,0.00035616,14]
[337610677,1725892243752,-500.0,0.00035616,14]
[337610678,1725892243762,-500.0,0.00035616,14]
[337610679,1725892243774,-500.0,0.00035616,14]
[337610680,1725892243784,-500.0,0.00035616,14]
[337610681,1725892243794,-831.58,0.00035616,14]
[337610682,1725892243803,-507.88213887,0.00035616,14]
[337610683,1725892243813,-1076.49,0.00035616,14]
[337610684,1725892243823,-500.0,0.00035616,14]
[337610685,1725892243832,-46827.62435641,0.00035616,14]
[337610770,1725892245640,-748.46564359,0.00035616,14]
[337610772,1725892245650,-2487.04,0.00035616,14]
[337610774,1725892245660,-693.3,0.00035616,14]
[337610776,1725892245670,-500.0,0.00035616,2]
[337610778,1725892245679,-519.48360018,0.00035616,2]
[337610780,1725892245689,-589.5,0.00035616,14]
[337610782,1725892245698,-500.0,0.00035616,14]
[337610784,1725892245707,-500.0,0.00035616,14]
[337610786,1725892245717,-754.68,0.00035616,14]
[337610788,1725892245727,-500.0,0.00035616,14]
[337610790,1725892245737,-504.75987686,0.00035616,14]
[337610792,1725892245746,-58017.09078337,0.00035616,14]
[337610794,1725892245759,-26235.01921663,0.00035616,14]
[337610797,1725892245771,-694.16,0.00035616,14]
[337610798,1725892245780,-881.61,0.00035616,14]
[337610801,1725892245791,-571.42,0.00035616,14]
[337610803,1725892245801,-796.83,0.00035616,14]
[337610805,1725892245811,-5104.29,0.00035616,14]
[337610807,1725892245820,-500.0,0.00035616,14]
[337610809,1725892245830,-500.0,0.00035616,14]
[337610811,1725892245840,-500.0,0.00035616,14]
[337610813,1725892245850,-500.0,0.00035616,14]
[337610815,1725892245859,-500.0,0.00035616,14]
[337610817,1725892245869,-500.0,0.00035616,14]
[337610819,1725892245879,-502.08844306,0.00035616,14]
[337610820,1725892245888,-500.0,0.00035616,14]
[337610822,1725892245898,-521.75146082,0.00035616,14]
[337610824,1725892245908,-628.71,0.00035616,14]
[337610826,1725892245917,-500.0,0.00035616,14]
[337610828,1725892245928,-903.52,0.00035616,14]
[337610830,1725892245939,-507.92,0.00035616,14]
[337610832,1725892245948,-500.0,0.00035616,14]
[337610834,1725892245958,-500.0,0.00035616,14]
[337610836,1725892245968,-1304.66,0.00035616,14]
[337610838,1725892245977,-504.69781228,0.00035616,14]
[337610840,1725892245986,-1711.78,0.00035616,14]
[337610842,1725892245998,-500.0,0.00035616,14]
[337610844,1725892246009,-501.36189541,0.00035616,14]
[337610846,1725892246023,-452.692225,0.00035616,14]
[337610848,1725892246033,-452.692225,0.00035616,14]
[337610850,1725892246043,-500.0,0.00035616,14]
[337610852,1725892246053,-500.0,0.00035616,14]
[337610854,1725892246062,-500.0,0.00035616,14]
[337610856,1725892246072,-500.0,0.00035616,14]
[337610858,1725892246082,-452.692225,0.00035616,14]
[337610860,1725892246091,-151.0,0.00035616,14]
[337610862,1725892246102,-504.22030287,0.00035616,14]
[337610865,1725892246112,-452.692225,0.00035616,14]
[337610867,1725892246122,-151.0,0.00035616,14]
[337610869,1725892246132,-151.0,0.00035616,14]
[337610870,1725892246142,-724.54,0.00035616,14]
[337610871,1725892246152,-602.85,0.00035616,14]
[337610872,1725892246162,-955.42,0.00035616,14]
[337610873,1725892246172,-798.61,0.00035616,14]
[337610874,1725892246182,-2876.3,0.00035616,14]
[337610875,1725892246192,-151.0,0.00035616,14]
[337610876,1725892246202,-151.0,0.00035616,14]
[337610877,1725892246211,-500.0,0.00035616,14]
[337610878,1725892246220,-151.0,0.00035616,14]
[337610879,1725892246229,-500.0,0.00035616,14]
[337610880,1725892246239,-151.0,0.00035616,14]
[337610881,1725892246249,-753.6,0.00035616,14]
[337610882,1725892246258,-151.0,0.00035616,14]
[337610883,1725892246269,-151.0,0.00035616,14]
[337610884,1725892246278,-819.58,0.00035616,14]
[337610885,1725892246288,-500.0,0.00035616,14]
[337610886,1725892246298,-2396.84,0.00035616,14]
[337610887,1725892246307,-287.47311274,0.00035616,14]
[337610889,1725892246316,-500.0,0.00035616,14]
[337610891,1725892246325,-655.58,0.00035616,14]
[337610893,1725892246334,-500.0,0.00035616,14]
[337610895,1725892246343,-333.68941006,0.00035616,14]
[337610897,1725892246353,-500.0,0.00035616,14]
[337610899,1725892246363,-500.0,0.00035616,14]
[337610900,1725892246373,-662.26,0.00035616,14]
[337610901,1725892246382,-500.0,0.00035616,14]
[337610903,1725892246391,-500.0,0.00035616,14]
[337610904,1725892246401,-23296.63,0.00035616,14]
[337610905,1725892246410,-500.0,0.00035616,14]
[337610906,1725892246422,-1643.93,0.00035616,14]
[337610907,1725892246433,-248.7598104,0.00035616,14]
[337610908,1725892246442,-1007.04,0.00035616,14]
[337610909,1725892246452,-500.0,0.00035616,14]
[337610910,1725892246462,-500.0,0.00035616,14]
[337610911,1725892246472,-890.7,0.00035616,14]
[337610912,1725892246482,-779.38,0.00035616,14]
[337610913,1725892246492,-513.06,0.00035616,14]
[337610914,1725892246501,-1286.18,0.00035616,14]
[337610915,1725892246511,-10042.4,0.00035616,14]
[337610916,1725892246523,-500.0,0.00035616,14]
[337610917,1725892246534,-500.0,0.00035616,14]
[337610918,1725892246544,-500.0,0.00035616,14]
[337610919,1725892246553,-500.0,0.00035616,14]
[337610920,1725892246563,-500.0,0.00035616,14]
[337610921,1725892246572,-5289.18,0.00035616,14]
[337610922,1725892246583,-595.66504725,0.00035616,3]
[337610923,1725892246593,-500.0,0.00035616,14]
[337610924,1725892246602,-500.0,0.00035616,14]
[337610925,1725892246612,-1179.98,0.00035616,14]
[337610926,1725892246621,-500.0,0.00035616,14]
[337610927,1725892246630,-1533.31,0.00035616,14]
[337610928,1725892246639,-500.0,0.00035616,14]
[337610929,1725892246649,-1906.16,0.00035616,14]
[337610930,1725892246658,-500.0,0.00035616,14]
[337610931,1725892246668,-673.51,0.00035616,14]
[337610932,1725892246678,-1349.41,0.00035616,14]
[337610933,1725892246687,-500.0,0.00035616,14]
[337610934,1725892246696,-500.0,0.00035616,14]
[337610935,1725892246706,-500.0,0.00035616,14]
[337610936,1725892246716,-1124.27,0.00035616,14]
[337610937,1725892246725,-1496.29,0.00035616,14]
[337610938,1725892246735,-500.0,0.00035616,14]
[337610939,1725892246745,-500.0,0.00035616,14]
[337610940,1725892246755,-2068.56,0.00035616,14]
[337610941,1725892246764,-500.0,0.00035616,14]
[337610942,1725892246783,-305.40219266,0.00035616,14]
[337610943,1725892246793,-2481.45,0.00035616,14]
[337610944,1725892246806,-500.0,0.00035616,14]
[337610945,1725892246815,-500.51381378,0.00035616,14]
[337610946,1725892246825,-500.0,0.00035616,14]
[337610947,1725892246836,-1078.02,0.00035616,14]
[337610948,1725892246846,-500.0,0.00035616,14]
[337610949,1725892246856,-151.0,0.00035616,14]
[337610950,1725892246866,-151.0,0.00035616,14]
[337610951,1725892246876,-500.0,0.00035616,14]
[337610952,1725892246886,-5032.03,0.00035616,14]
[337610953,1725892246895,-151.975802,0.00035616,14]
[337610954,1725892246905,-917.18,0.00035616,14]
[337610955,1725892246915,-1108.89,0.00035616,14]
[337610956,1725892246930,-625.01165026,0.00035616,14]
[337610957,1725892246940,-4284.04,0.00035616,14]
[337610958,1725892246949,-1617.31,0.00035616,14]
[337610959,1725892246958,-500.0,0.00035616,14]
[337610960,1725892246970,-500.0,0.00035616,14]
[337610961,1725892246979,-500.0,0.00035616,14]
[337610962,1725892246990,-999.0,0.00035616,14]
[337610963,1725892247001,-151.0,0.00035616,14]
[337610964,1725892247010,-151.0,0.00035616,14]
[337610965,1725892247022,-1818.59,0.00035616,14]
[337610966,1725892247031,-3470.01,0.00035616,14]
[337610967,1725892247040,-837.74,0.00035616,14]
[337610968,1725892247050,-151.0,0.00035616,14]
[337610969,1725892247059,-500.0,0.00035616,14]
[337610970,1725892247068,-500.0,0.00035616,14]
[337610971,1725892247078,-151.0,0.00035616,14]
[337610972,1725892247088,-500.0,0.00035616,14]
[337610973,1725892247097,-596.45,0.00035616,14]
[337610974,1725892247107,-541.02,0.00035616,14]
[337610975,1725892247117,-500.0,0.00035616,14]
[337610976,1725892247127,-546.13,0.00035616,14]
[337610977,1725892247137,-500.0,0.00035616,14]
[337610978,1725892247146,-500.0,0.00035616,14]
[337610979,1725892247155,-672.47,0.00035616,2]
[337610980,1725892247164,-500.0,0.00035616,14]
[337610981,1725892247174,-500.0,0.00035616,14]
[337610982,1725892247184,-1032.1,0.00035616,14]
[337610983,1725892247193,-500.0,0.00035616,14]
[337610984,1725892247203,-500.0,0.00035616,14]
[337610985,1725892247213,-1584.91,0.00035616,14]
[337610986,1725892247222,-553.55,0.00035616,14]
[337610987,1725892247232,-500.0,0.00035616,14]
[337610988,1725892247241,-500.0,0.00035616,14]
[337610989,1725892247251,-5583.06,0.00035616,14]
[337610990,1725892247260,-308.3517357,0.00035616,14]
[337610991,1725892247269,-7668.42,0.00035616,14]
[337610992,1725892247279,-500.0,0.00035616,14]
[337610993,1725892247289,-1067.14,0.00035616,14]
[337610994,1725892247298,-906.69,0.00035616,14]
[337610995,1725892247308,-151.0,0.00035616,14]
[337610996,1725892247317,-500.0,0.00035616,14]
[337610997,1725892247327,-151.0,0.00035616,14]
[337610998,1725892247336,-502.0581262,0.00035616,14]
[337610999,1725892247346,-500.0,0.00035616,14]
[337611000,1725892247356,-151.0,0.00035616,14]
[337611001,1725892247366,-500.0,0.00035616,14]
[337611002,1725892247375,-500.0,0.00035616,14]
[337611003,1725892247385,-500.0,0.00035616,14]
[337611004,1725892247394,-500.0,0.00035616,14]
[337611005,1725892247404,-543.05,0.00035616,14]
[337611006,1725892247413,-500.0,0.00035616,14]
[337611007,1725892247423,-264.651072,0.00035616,14]
[337611008,1725892247433,-500.87711517,0.00035616,14]
[337611009,1725892247443,-500.0,0.00035616,14]
[337611010,1725892247453,-500.0,0.00035616,14]
[337611011,1725892247462,-1314.29,0.00035616,14]
[337611012,1725892247472,-1565.33,0.00035616,14]
[337611013,1725892247481,-1198.04,0.00035616,14]
[337611014,1725892247491,-272.50098039,0.00035616,14]
[337611015,1725892247500,-521.22,0.00035616,14]
[337611016,1725892247510,-151.0,0.00035616,14]
[337611017,1725892247519,-151.0,0.00035616,14]
[337611018,1725892247528,-597.46422064,0.00035616,14]
[337611019,1725892247537,-500.0,0.00035616,14]
[337611020,1725892247547,-500.0,0.00035616,14]
[337611021,1725892247556,-500.0,0.00035616,14]
[337611022,1725892247566,-151.0,0.00035616,14]
[337611023,1725892247576,-500.0,0.00035616,14]
[337611024,1725892247585,-151.0,0.00035616,14]
[337611025,1725892247595,-151.0,0.00035616,14]
[337611026,1725892247604,-500.0,0.00035616,14]
[337611027,1725892247614,-2899.6490921,0.00035616,14]
[337611028,1725892247878,-150.0,0.00033,42]
[337611029,1725892247888,-5707.0209079,0.00035616,14]
[337611030,1725892247898,-500.0,0.00035616,14]
[337611031,1725892247908,-151.0,0.00035616,14]
[337611032,1725892247919,-807.78,0.00035616,14]
[337611033,1725892247931,-1549.17,0.00035616,14]
[337611034,1725892247945,-500.0,0.00035616,14]
[337611035,1725892247955,-500.0,0.00035616,14]
[337611036,1725892247966,-2011.46,0.00035616,14]
[337611037,1725892247976,-151.0,0.00035616,14]
[337611038,1725892247985,-502.46728596,0.00035616,14]
[337611039,1725892247995,-151.0,0.00035616,14]
[337611040,1725892248005,-152.298797,0.00035616,14]
[337611041,1725892248014,-500.0,0.00035616,14]
[337611042,1725892248030,-983.86,0.00035616,14]
[337611043,1725892248039,-1208.94,0.00035616,14]
[337611044,1725892248050,-500.0,0.00035616,14]
[337611045,1725892248060,-500.0,0.00035616,14]
[337611046,1725892248074,-500.0,0.00035616,14]
[337611047,1725892248084,-6516.51,0.00035616,14]
[337611048,1725892248093,-6516.51,0.00035616,14]
[337611049,1725892248103,-151.0,0.00035616,14]
[337611050,1725892248112,-6516.51,0.00035616,14]
[337611051,1725892248122,-151.0,0.00035616,14]
[337611052,1725892248280,-6516.51,0.00035616,14]
[337611053,1725892248291,-500.0,0.00035616,14]
[337611054,1725892248301,-6516.51,0.00035616,14]
[337611055,1725892248311,-6516.51,0.00035616,14]
[337611056,1725892248321,-500.0,0.00035616,14]
[337611057,1725892248331,-6516.51,0.00035616,14]
[337611058,1725892248341,-2652.63236843,0.00035616,14]
[337611060,1725892248752,-123.17707942,0.00035616,14]
[337611061,1725892248764,-815.34435528,0.00035616,14]
[337618694,1725892578463,1000.0,0.00025,2]
[337618721,1725893435217,-216.0,0.0003,120]
[337618722,1725893435227,-267.27780737,0.00030961,2]
[337618767,1725893438705,-227.12919723,0.00030961,2]
[337618768,1725893438716,-689.764014,0.00030996,2]
[337618769,1725893438726,-250.0,0.00031038,2]
[337618770,1725893438735,-167.6357544,0.00031207,2]
[337618771,1725893438745,-400.0,0.00031313,2]
[337618772,1725893438757,-221.0,0.00031314,2]
[337618773,1725893438766,-24900.0,0.00031314,2]
[337618774,1725893438777,-250.0,0.00031419,2]
[337618775,1725893438786,-250.0,0.00031505,2]
[337618776,1725893438796,-250.0,0.00031591,2]
[337618777,1725893438806,-250.0,0.00031677,2]
[337618778,1725893438815,-250.0,0.00031763,2]
[337618779,1725893438825,-250.0,0.0003185,2]
[337618780,1725893438834,-250.0,0.00031936,2]
[337618781,1725893438845,-250.0,0.00032022,2]
[337618782,1725893438855,-250.0,0.00032108,2]
[337618783,1725893438864,-250.0,0.00032194,2]
[337618784,1725893438875,-250.0,0.0003228,2]
[337618785,1725893438884,-250.0,0.00032367,2]
[337618786,1725893438894,-381.57392979,0.00032439,2]
[337618787,1725893438904,-250.0,0.00032453,2]
[337618788,1725893438914,-250.0,0.00032539,2]
[337618789,1725893438924,-250.0,0.00032625,2]
[337618790,1725893438933,-250.0,0.00032711,2]
[337618791,1725893438943,-250.0,0.00032797,2]
[337618792,1725893438953,-250.0,0.00032884,2]
[337618793,1725893438963,-250.0,0.0003297,2]
[337618794,1725893438973,-250.0,0.00033056,2]
[337618795,1725893438983,-381.57392979,0.00033387,2]
[337618796,1725893438994,-200.0,0.00034,120]
[337618797,1725893439003,-5371.73456583,0.0003406,2]
[337618798,1725893439013,-5371.73456583,0.00034302,2]
[337618799,1725893439022,-381.57392979,0.00034336,2]
[337618800,1725893439032,-295.0,0.00034444,2]
[337618801,1725893439042,-5371.73456583,0.00034771,2]
[337618802,1725893439051,-1000.0,0.00035002,60]
[337618803,1725893439060,-5371.73456583,0.00035064,2]
[337618804,1725893439070,-5371.73456583,0.0003523,2]
[337618805,1725893439079,-381.57392979,0.00035284,2]
[337618806,1725893439089,-1000.0,0.00035396,2]
[337618807,1725893439099,-500.0,0.00035399,7]
[337618808,1725893439109,-500.0,0.00035399,7]
[337618809,1725893439119,-527.82619182,0.00035399,7]
[337618810,1725893439129,-4749.09514052,0.000354,2]
[337618811,1725893439141,-1895.79188583,0.000354,2]
[337618812,1725893439155,-51392.76616506,0.000354,2]
[337618813,1725893439165,-839.42419112,0.00035406,2]
[337618814,1725893439176,-777.87798497,0.00035406,2]
[337618815,1725893439187,-32.68416243,0.00035426,2]
[337618816,1725893439199,-806.74002869,0.00035426,2]
[337618817,1725893439209,-839.42419112,0.00035446,2]
[337618818,1725893439219,-839.42419112,0.00035465,2]
[337618819,1725893439229,-624.46709452,0.00035473,5]
[337618820,1725893439240,-199.21532078,0.00035473,5]
[337618821,1725893439249,-500.0,0.00035473,5]
[337618822,1725893439261,-260.58052284,0.00035473,5]
[337618823,1725893439274,-500.0,0.00035473,5]
[337618824,1725893439283,-839.42419112,0.00035485,2]
[337618825,1725893439293,-500.0,0.00035495,7]
[337618826,1725893439303,-279.89066592,0.00035495,7]
[337618827,1725893439314,-140356.8352019,0.00035496,5]
[337618938,1725894308314,-166.666666,0.00027,2]
[337618939,1725894308352,-163.794977,0.00027727,2]
[337618940,1725894308386,-163.794977,0.0002783,2]
[337618941,1725894308419,-163.794977,0.00027933,2]
[337618942,1725894308448,-3289.0,0.00028,15]
[337618943,1725894308479,-163.794977,0.00028036,2]
[337618944,1725894308513,-163.794977,0.00028139,2]
[337618945,1725894308545,-163.794977,0.00028243,2]
[337618946,1725894308579,-163.794977,0.00028346,2]
[337618947,1725894308612,-163.794977,0.00028449,2]
[337618948,1725894308643,-163.794977,0.00028552,2]
[337618949,1725894308676,-443.136526,0.00028619,2]
[337618950,1725894308707,-163.794977,0.00028655,2]
[337618951,1725894308739,-163.794977,0.00028759,2]
[337618952,1725894308770,-163.794977,0.00028862,2]
[337618953,1725894308802,-163.794977,0.00028965,2]
[337618954,1725894308833,-163.794977,0.00029068,2]
[337618955,1725894308865,-163.794977,0.00029172,2]
[337618956,1725894308895,-300.0,0.00029564,2]
[337618957,1725894308936,-24900.0,0.00029568,2]
[337618958,1725894308966,-168.879309,0.00029743,2]
[337618959,1725894308997,-168.879309,0.00029764,2]
[337618960,1725894309030,-168.879309,0.00029785,2]
[337618961,1725894309063,-168.879309,0.00029806,2]
[337618962,1725894309099,-168.879309,0.00029828,2]
[337618963,1725894309133,-168.879309,0.00029849,2]
[337618964,1725894309164,-168.879309,0.0002987,2]
[337618965,1725894309202,-168.879309,0.00029891,2]
[337618966,1725894309232,-1500.0,0.0003,2]
[337618967,1725894309374,190.78696493,0.00029643,2]
[337618968,1725894426689,20800.0,0.00026,60]
[337618970,1725894571136,-258.0,0.00029779,2]
[337618971,1725894571384,-6181.43693242,0.0002978,2]
[337618986,1725894631833,-650.74765874,0.0002978,2]
[337619023,1725894637849,-18067.81540884,0.0002978,2]
[337619024,1725894637861,-221.568263,0.00029961,2]
[337619025,1725894637871,-1500.0,0.0003,2]
[337619026,1725894637880,-200.31810328,0.0003,7]
[337619027,1725894637891,-1500.0,0.00030114,2]
[337619028,1725894637902,-1500.0,0.00030229,2]
[337619029,1725894637912,-1500.0,0.00030343,2]
[337619030,1725894637922,-1500.0,0.00030457,2]
[337619031,1725894637932,-1500.0,0.00030571,2]
[337619033,1725894637942,-326.40707622,0.00030686,2]
[337619677,1725894646068,-3.0,0.00030686,2]
[337619975,1725894949512,59491.82234988,0.00025,5]
[337619976,1725894959823,475.0,0.00028,120]
[337619984,1725895053290,1500.0,0.00025,2]
[337619986,1725895054151,1500.0,0.00025,2]
[337619989,1725895054957,1500.0,0.00025,2]